bitfinex/quotes_ETHUSD_20251031
["timestamp","ask_amount","ask_price","bid_price","bid_amount"]
[1761874509772,2.59969843,3846.6,3846.5,0.1296]
[1761874511137,2.55460843,3846.6,3846.5,0.1296]
[1761874511336,2.93220843,3846.6,3846.5,0.1296]
[1761874511562,3.40120843,3846.6,3846.5,0.1296]
[1761874512236,3.39907843,3846.6,3846.5,0.1296]
[1761874512433,2.59983361,3846.4,3846.3,0.001]
[1761874512664,0.0047,3846.4,3846.3,0.1306]
[1761874512845,2.59983361,3846.4,3846.3,0.6282]
[1761874513060,0.002,3846.8,3846.3,0.9547]
[1761874513250,0.4729,3846.8,3846.3,0.001]
[1761874513452,2.97653361,3846.4,3846.3,0.001]
[1761874514059,0.4729,3846.8,3846.3,0.4986]
[1761874514263,2.59983361,3846.4,3846.3,0.4986]
[1761874515280,2.59529361,3846.4,3846.3,0.4986]
[1761874516211,2.59971628,3846.6,3846.3,0.98549901]
[1761874516367,0.1896,3847.9,3846.5,0.4963]
[1761874516576,2.59920787,3847.4,3847.1,0.4963]
[1761874516894,2.59909534,3847.5,3847.2,0.02599292]
[1761874517106,0.002,3848.2,3847.3,0.4963]
[1761874517407,2.59882013,3847.9,3847.8,0.4963]
[1761874517566,0.002,3848.2,3847.8,0.4963]
[1761874517767,2.60065827,3848.2,3847.8,0.9572]
[1761874517971,2.60065827,3848.2,3847.8,0.4963]
[1761874518168,2.59878459,3848.0,3847.9,0.0259882]
[1761874518376,2.59878459,3848.0,3847.8,0.4963]
[1761874518568,2.60068326,3848.2,3847.9,0.4963]
[1761874518772,2.59868506,3848.1,3848.0,0.02598752]
[1761874519253,2.59868506,3848.1,3848.0,0.52228752]
[1761874519456,2.59868506,3848.1,3848.0,0.4963]
[1761874519910,2.60063063,3848.2,3848.0,0.4963]
[1761874520195,2.60063063,3848.2,3848.1,0.4626]
[1761874521161,0.002,3848.2,3848.1,0.4626]
[1761874521374,0.002,3848.2,3848.1,1.14388685]
[1761874522470,0.002,3848.2,3848.1,1.51816109]
[1761874522671,0.002,3848.2,3848.1,1.14388685]
[1761874523071,0.002,3848.2,3848.1,1.27348685]
[1761874524008,0.00088,3848.2,3848.1,1.27348685]
[1761874524177,0.00088,3848.2,3848.1,2.67316685]
[1761874524366,0.00088,3848.2,3848.1,5.27185191]
[1761874524701,0.00088,3848.2,3848.1,6.03293609]
[1761874525096,0.00088,3848.2,3848.1,6.43844009]
[1761874529174,0.00088,3848.2,3848.1,10.28844009]
[1761874531986,0.00088,3848.2,3848.1,2.97275103]
[1761874532536,0.00088,3848.2,3848.1,6.43844009]
[1761874533024,0.00088,3848.2,3848.1,3.83975503]
[1761874534399,0.00088,3848.2,3848.1,2.77895103]
[1761874534601,0.00088,3848.2,3848.1,2.31635103]
[1761874534802,0.00088,3848.2,3848.1,2.77895103]
[1761874536736,0.00088,3848.2,3848.1,6.24464009]
[1761874541459,0.00088,3848.2,3848.1,10.09464009]
[1761874542163,0.00088,3848.2,3848.1,9.63314009]
[1761874542331,0.00088,3848.2,3848.1,10.09464009]
[1761874542727,0.00088,3848.2,3848.1,6.62895103]
[1761874542935,0.32048,3848.2,3848.1,6.16635103]
[1761874543134,0.32048,3848.2,3848.1,9.17054009]
[1761874543333,0.00088,3848.2,3848.1,9.63314009]
[1761874543738,0.00088,3848.2,3848.1,7.03445503]
[1761874544468,0.00088,3848.2,3848.1,9.63314009]
[1761874544869,0.32048,3848.2,3848.1,6.16635103]
[1761874545058,0.32048,3848.2,3848.1,8.76503609]
[1761874545439,0.00088,3848.2,3848.1,9.22763609]
[1761874545638,0.00088,3848.2,3848.1,5.37763609]
[1761874545958,0.00088,3848.2,3848.1,5.83913609]
[1761874547065,0.00088,3848.2,3848.1,6.24464009]
[1761874548056,0.00088,3848.2,3848.1,5.78314009]
[1761874548375,0.00088,3848.2,3848.1,6.24464009]
[1761874551369,0.00088,3848.2,3848.1,10.09464009]
[1761874557054,0.00088,3848.2,3848.1,9.63314009]
[1761874557280,0.00088,3848.2,3848.1,10.11194009]
[1761874559356,0.00088,3848.2,3848.1,14.97856311]
[1761874560657,0.00088,3848.2,3848.1,19.84518613]
[1761874560857,0.002,3848.6,3848.5,4.40359896]
[1761874561063,0.002,3848.6,3848.5,10.75068455]
[1761874561259,0.002,3849.1,3848.8,0.405504]
[1761874561484,0.002,3850.8,3849.4,4.40299145]
[1761874561682,0.4566,3850.5,3849.4,9.96179254]
[1761874561884,0.4566,3850.5,3849.4,10.41461447]
[1761874562190,0.4566,3850.5,3849.4,11.84546591]
[1761874565391,0.002,3850.8,3849.4,11.84546591]
[1761874565720,0.4566,3850.6,3849.4,11.84546591]
[1761874566011,0.002,3849.9,3849.4,11.84546591]
[1761874566882,0.002,3849.9,3849.4,11.18516591]
[1761874567110,0.6346,3849.5,3849.4,1.52928]
[1761874569020,3.23233996,3849.5,3849.4,0.1296]
[1761874569334,2.59800266,3849.2,3848.3,4.86662302]
[1761874569623,2.59800266,3849.2,3849.1,0.1296]
[1761874569999,3.07070266,3849.2,3849.1,0.1296]
[1761874570309,3.41990266,3849.2,3849.1,0.1296]
[1761874572222,0.8219,3849.2,3849.1,0.1296]
[1761874572938,3.41984242,3849.2,3849.1,0.1296]
[1761874574706,0.8219,3849.2,3849.1,0.1296]
[1761874577832,0.8219,3849.2,3849.1,4.99622302]
[1761874578017,0.002,3849.5,3849.2,1.39968]
[1761874578207,0.002,3849.5,3849.4,9.32321047]
[1761874578541,0.002,3849.5,3849.4,9.45281047]
[1761874578839,0.002,3849.5,3849.4,9.85831447]
[1761874579046,0.002,3849.5,3849.4,10.35021447]
[1761874579233,0.002,3849.5,3849.4,11.69524909]
[1761874580163,0.3528,3849.5,3849.4,8.14644164]
[1761874580854,0.002,3849.5,3849.4,8.60614164]
[1761874581338,0.002,3849.5,3849.4,1.52928]
[1761874581339,0.8332,3849.5,3849.4,1.52928]
[1761874582741,0.8332,3849.5,3849.4,0.1296]
[1761874586143,0.3541,3849.5,3849.4,0.1296]
[1761874586523,0.8332,3849.5,3849.4,0.1296]
[1761874588843,0.3541,3849.5,3849.4,0.1296]
[1761874589054,0.34377374,3849.5,3849.4,0.1296]
[1761874589226,0.01,3849.7,3849.4,0.15557807]
[1761874589627,0.01,3849.7,3849.6,0.1296]
[1761874590047,0.3551,3849.7,3849.6,0.1296]
[1761874590263,0.8329,3849.7,3849.6,0.1296]
[1761874590563,2.59778531,3849.5,3849.1,0.001]
[1761874590936,0.4828,3849.6,3849.1,0.001]
[1761874590937,0.3414,3849.2,3849.1,0.001]
[1761874591456,0.4828,3849.6,3849.1,0.001]
[1761874591860,0.3414,3849.2,3849.1,0.001]
[1761874592460,0.01,3849.7,3849.1,0.48668009]
[1761874592662,0.01,3849.7,3849.3,1.39968]
[1761874592834,0.01,3849.7,3849.4,0.02597807]
[1761874592835,0.4928,3849.7,3849.4,0.02597807]
[1761874593259,0.3414,3849.5,3849.4,0.02597807]
[1761874595370,0.01,3849.7,3849.4,0.48567807]
[1761874595764,0.01,3849.7,3849.4,3.083466]
[1761874596168,0.01,3849.7,3849.6,0.4597]
[1761874596372,0.01,3849.7,3849.6,3.0833492]
[1761874596665,0.01,3849.7,3849.6,4.9517292]
[1761874599666,0.01,3849.7,3849.6,5.3572332]
[1761874599843,0.01,3849.7,3849.6,11.34034371]
[1761874600047,0.01,3849.7,3849.6,16.64566888]
[1761874600462,0.01,3849.7,3849.6,16.77526888]
[1761874600747,0.01,3850.7,3850.2,4.40245167]
[1761874600946,0.01,3850.7,3850.2,11.54871157]
[1761874601266,0.01,3850.7,3850.2,11.5227389]
[1761874601580,0.01,3850.7,3850.2,13.06434889]
[1761874603082,0.002,3850.5,3850.2,13.06434889]
[1761874606085,0.01,3850.7,3850.6,2.59699787]
[1761874606250,0.01,3850.7,3850.6,4.86188187]
[1761874606455,0.01,3850.7,3850.6,5.35655184]
[1761874606656,0.01,3850.7,3850.6,5.46018187]
[1761874606856,0.01,3850.7,3850.6,6.26591333]
[1761874607290,0.002,3851.6,3850.7,4.40211442]
[1761874607582,0.002,3851.6,3851.1,9.26054166]
[1761874607797,0.002,3851.6,3851.1,9.82444166]
[1761874607964,0.002,3851.6,3851.1,10.42274166]
[1761874608292,0.002,3851.6,3851.1,11.72469125]
[1761874611273,0.002,3851.6,3851.1,6.86599428]
[1761874611590,0.002,3851.6,3851.1,12.33226274]
[1761874612957,0.002,3851.6,3851.1,5.83339428]
[1761874612958,0.3741,3851.2,3851.1,5.83339428]
[1761874613389,0.8495,3851.2,3851.1,3.23673359]
[1761874613690,0.8495,3851.2,3851.1,1.52928]
[1761874613889,0.8495,3851.2,3851.1,1.934784]
[1761874614409,0.8495,3851.2,3851.1,4.53144469]
[1761874614780,0.3741,3851.2,3851.1,4.53144469]
[1761874615290,0.3741,3851.2,3851.1,1.934784]
[1761874615495,0.8495,3851.2,3851.1,1.934784]
[1761874615806,0.8495,3851.2,3851.1,4.53144469]
[1761874616007,0.3741,3851.2,3851.1,4.53144469]
[1761874616714,0.002,3851.2,3851.1,6.75059461]
[1761874616880,0.3741,3851.2,3851.1,3.19423392]
[1761874617510,0.3741,3851.2,3851.1,5.79089461]
[1761874619006,0.3741,3851.2,3851.1,9.64089461]
[1761874619578,0.002,3851.2,3851.1,10.60059461]
[1761874624380,0.002,3851.6,3851.5,4.40157501]
[1761874624606,0.002,3851.6,3851.5,11.54252186]
[1761874624805,0.002,3851.6,3851.5,12.04172186]
[1761874624988,0.002,3851.6,3851.5,12.17132186]
[1761874628791,0.1775,3851.6,3851.5,4.96544508]
[1761874629485,0.1775,3851.6,3851.5,5.37094908]
[1761874631329,0.654,3851.6,3851.5,3.13149501]
[1761874631717,0.654,3851.6,3851.5,4.53117501]
[1761874633512,0.654,3851.6,3851.5,8.38117501]
[1761874635392,0.1775,3851.6,3851.5,8.38117501]
[1761874636691,0.002,3851.6,3851.5,9.30667501]
[1761874636890,0.002,3851.6,3851.5,10.49699108]
[1761874639532,0.4876,3851.6,3851.5,9.57149108]
[1761874639890,0.002,3851.6,3851.5,10.03769108]
[1761874640292,0.002,3851.6,3851.5,9.57149108]
[1761874640491,0.002,3851.6,3851.5,10.03769108]
[1761874640726,0.002,3851.6,3851.5,9.57149108]
[1761874641529,0.3949,3851.6,3851.5,9.57149108]
[1761874642733,0.002,3851.6,3851.5,10.52339108]
[1761874643393,0.002,3851.6,3851.5,15.98851813]
[1761874644356,0.002,3852.4,3851.8,0.405504]
[1761874644655,0.002,3852.4,3852.3,3.00135582]
[1761874644852,0.002,3852.4,3852.3,10.50902138]
[1761874645152,0.002,3852.4,3852.3,11.09836287]
[1761874645322,0.002,3852.4,3852.3,11.20234553]
[1761874647454,0.002,3852.4,3852.3,5.73721848]
[1761874647651,0.002,3852.4,3852.3,7.15426464]
[1761874648240,0.6833,3852.4,3852.3,1.39968]
[1761874648433,0.6833,3852.4,3852.3,3.99553182]
[1761874648918,0.6833,3852.4,3852.3,1.39968]
[1761874651026,0.6833,3852.4,3851.4,0.34487546]
[1761874651226,0.4856,3851.5,3851.4,2.94133389]
[1761874651425,0.4856,3851.5,3851.4,4.74651789]
[1761874651646,0.1826,3851.8,3851.7,3.00176019]
[1761874651864,0.1826,3851.8,3851.7,4.42740275]
[1761874652065,0.6672,3851.8,3851.7,4.40144019]
[1761874653264,1.0449,3851.8,3851.7,4.40144019]
[1761874656959,1.0449,3851.8,3851.7,1.39968]
[1761874657163,1.0449,3851.8,3851.4,0.34487546]
[1761874657365,0.3908,3851.5,3851.4,2.94128487]
[1761874658156,0.3908,3851.5,3851.4,4.34096487]
[1761874658359,0.3908,3851.5,3851.4,4.47056487]
[1761874658762,0.8613,3851.5,3851.4,4.47056487]
[1761874659329,0.8613,3851.5,3851.4,1.87415546]
[1761874659864,0.8613,3851.5,3851.4,4.47061389]
[1761874660844,0.8613,3851.5,3851.4,4.49657847]
[1761874661962,0.3908,3851.5,3851.4,4.47061389]
[1761874662279,0.002,3852.0,3851.7,3.99593619]
[1761874662437,0.002,3852.0,3851.9,2.59612139]
[1761874662639,0.3786,3852.0,3851.9,1.39968]
[1761874662964,0.8632,3852.0,3851.9,1.52928]
[1761874663270,0.8632,3852.0,3851.9,4.12540139]
[1761874663635,0.8632,3852.0,3851.9,1.52928]
[1761874664039,0.8632,3852.0,3851.9,4.12540139]
[1761874665974,0.8632,3852.0,3851.9,1.52928]
[1761874667172,0.8632,3852.0,3851.9,1.39968]
[1761874669380,1.20910573,3852.0,3851.9,1.39968]
[1761874669676,0.8632,3852.0,3851.5,1.39968]
[1761874669875,0.474,3851.9,3851.5,1.39968]
[1761874670078,0.4912,3851.6,3851.5,2.59636908]
[1761874670311,0.4912,3851.6,3851.5,4.02201299]
[1761874670775,0.9613,3851.6,3851.5,4.02201299]
[1761874671474,0.4912,3851.6,3851.5,4.02201299]
[1761874672075,0.9613,3851.6,3851.5,1.39968]
[1761874672375,0.9613,3851.6,3851.5,3.99607101]
[1761874672579,0.9613,3851.6,3851.5,1.39968]
[1761874672971,1.32531943,3851.6,3851.5,1.39968]
[1761874673140,2.59639101,3851.5,3851.4,0.34487546]
[1761874673480,3.55749101,3851.5,3851.4,0.34487546]
[1761874678777,4.95717101,3851.5,3851.4,0.34487546]
[1761874679274,14.49581701,3851.5,3851.4,0.34487546]
[1761874679478,8.61921101,3851.5,3851.4,0.34487546]
[1761874679684,9.74075846,3851.5,3851.4,0.34487546]
[1761874680224,6.07871846,3851.5,3851.4,0.34487546]
[1761874681107,21.55465546,3851.5,3851.4,0.34487546]
[1761874681268,10.84382846,3851.5,3851.4,0.34487546]
[1761874682611,2.59659326,3851.2,3851.1,0.001]
[1761874682771,30.57585526,3851.2,3851.1,0.001]
[1761874682974,35.06314698,3850.8,3850.7,1e-08]
[1761874683514,35.53714698,3850.8,3850.7,1e-08]
[1761874683717,34.33956398,3850.8,3850.7,1e-08]
[1761874683871,37.05518701,3850.8,3850.7,1e-08]
[1761874685115,37.40835316,3850.8,3850.7,1e-08]
[1761874685270,38.60593616,3850.8,3850.7,1e-08]
[1761874685492,20.00269213,3850.1,3850.0,1e-08]
[1761874685698,22.27295458,3850.1,3850.0,1e-08]
[1761874686001,22.74695458,3850.1,3850.0,1e-08]
[1761874689835,21.35880058,3850.1,3850.0,1e-08]
[1761874690035,21.13909458,3850.1,3850.0,1e-08]
[1761874691144,7.85289758,3850.1,3850.0,1e-08]
[1761874691342,5.35289758,3850.1,3850.0,1e-08]
[1761874692341,27.91728358,3850.1,3850.0,1e-08]
[1761874692528,12.22929758,3850.1,3850.0,1e-08]
[1761874692733,18.99544567,3850.1,3850.0,1e-08]
[1761874693144,42.11904567,3850.1,3850.0,1e-08]
[1761874693452,40.43925167,3850.1,3850.0,1e-08]
[1761874693657,38.48786267,3850.1,3850.0,1e-08]
[1761874693855,34.23506067,3850.1,3850.0,1e-08]
[1761874694062,33.66646867,3850.1,3850.0,1e-08]
[1761874694258,33.66278567,3850.1,3850.0,1e-08]
[1761874695155,35.40238967,3850.1,3850.0,1e-08]
[1761874696261,35.85838367,3850.1,3850.0,1e-08]
[1761874697761,22.65948952,3850.1,3850.0,1e-08]
[1761874697957,20.05449152,3850.1,3850.0,1e-08]
[1761874698159,21.05492852,3850.1,3850.0,1e-08]
[1761874699258,30.22144852,3850.1,3850.0,1e-08]
[1761874699869,29.60001052,3850.1,3850.0,1e-08]
[1761874700030,27.27773652,3850.1,3850.0,1e-08]
[1761874700230,26.82221752,3850.1,3850.0,1e-08]
[1761874701265,27.46915452,3850.1,3850.0,1e-08]
[1761874701467,26.33097536,3850.1,3850.0,1e-08]
[1761874701770,15.01251936,3850.1,3850.0,1e-08]
[1761874702536,15.36568551,3850.1,3850.0,1e-08]
[1761874702837,15.01251936,3850.1,3850.0,1e-08]
[1761874709760,10.15570036,3850.1,3850.0,1e-08]
[1761874709980,38.60465736,3850.1,3850.0,1e-08]
[1761874710178,12.71720036,3850.1,3850.0,1e-08]
[1761874716102,12.22780036,3850.1,3850.0,1e-08]
[1761874716804,12.71720036,3850.1,3850.0,1e-08]
[1761874718311,13.07036651,3850.1,3850.0,1e-08]
[1761874718508,40.99826651,3850.1,3850.0,1e-08]
[1761874718697,40.59473251,3850.1,3850.0,1e-08]
[1761874719511,40.99826651,3850.1,3850.0,1e-08]
[1761874719808,39.89497351,3850.1,3850.0,1e-08]
[1761874720009,23.05182751,3850.1,3850.0,1e-08]
[1761874720580,25.17993351,3850.1,3850.0,1e-08]
[1761874720995,22.84424051,3850.1,3850.0,1e-08]
[1761874721196,22.49107436,3850.1,3850.0,1e-08]
[1761874721599,25.66563551,3850.1,3850.0,1e-08]
[1761874721803,25.98400462,3850.1,3850.0,1e-08]
[1761874722605,41.31663562,3850.1,3850.0,1e-08]
[1761874723324,46.1859344,3850.1,3850.0,1e-08]
[1761874723690,36.13914562,3850.1,3850.0,1e-08]
[1761874724693,41.31663562,3850.1,3850.0,1e-08]
[1761874724889,41.31663562,3850.1,3849.1,0.011]
[1761874724890,21.05444792,3849.1,3848.2,0.4766]
[1761874725209,24.4841367,3849.1,3848.4,0.4766]
[1761874725409,22.5540367,3849.1,3848.6,0.4776]
[1761874725588,22.1904587,3849.1,3848.6,0.4776]
[1761874725788,21.4123967,3849.1,3848.6,0.4776]
[1761874725985,22.49677955,3849.1,3848.6,0.4776]
[1761874726588,15.85091555,3849.1,3848.6,0.4776]
[1761874726792,15.85091555,3849.1,3849.0,0.4879]
[1761874727123,15.50164755,3849.1,3849.0,0.4879]
[1761874727997,15.50164755,3849.1,3849.0,0.9645]
[1761874727998,5.08207277,3849.1,3849.0,0.9645]
[1761874728195,3.99768992,3849.1,3849.0,0.9645]
[1761874728418,3.99768992,3849.1,3849.0,0.001]
[1761874729492,4.45698992,3849.1,3849.0,0.001]
[1761874729887,3.99768992,3849.1,3849.0,0.001]
[1761874730122,3.99768992,3849.1,3849.0,0.9496]
[1761874730502,2.59800992,3849.1,3849.0,0.9496]
[1761874731256,3.25757087,3849.1,3849.0,0.4718]
[1761874731415,3.25757087,3849.1,3849.0,0.9496]
[1761874737915,2.59800992,3849.1,3849.0,0.9496]
[1761874740072,2.59792681,3849.3,3849.0,0.9496]
[1761874740245,1.12154745,3850.0,3849.2,0.6525]
[1761874740451,0.002,3850.1,3849.9,0.4708]
[1761874740748,3.99902373,3850.1,3850.0,0.4708]
[1761874741760,2.59934373,3850.1,3850.0,0.9486]
[1761874742969,0.002,3850.1,3850.0,0.9486]
[1761874745848,0.002,3850.1,3850.0,1.0782]
[1761874746043,0.002,3850.1,3850.0,1.99615712]
[1761874746873,0.002,3850.1,3850.0,1.0782]
[1761874747048,2.59933513,3850.1,3850.0,0.9486]
[1761874748348,2.59933513,3850.1,3850.0,0.4708]
[1761874748547,2.59780745,3849.4,3849.3,0.4778]
[1761874748749,2.59780745,3849.4,3849.2,0.1817]
[1761874748750,2.59800992,3849.1,3848.9,0.1817]
[1761874749055,2.59780745,3849.4,3849.3,0.4708]
[1761874749450,2.59780745,3849.4,3849.3,0.9486]
[1761874750663,2.59800992,3849.1,3849.0,0.001]
[1761874750871,0.407504,3850.1,3849.3,0.4708]
[1761874751046,2.59780745,3849.4,3849.3,0.4708]
[1761874751251,2.59780745,3849.4,3849.3,0.9486]
[1761874753594,2.59800992,3849.1,3849.0,0.001]
[1761874753762,2.59792353,3849.3,3849.0,0.4788]
[1761874754267,2.59792353,3849.3,3849.2,0.4708]
[1761874754802,2.59792353,3849.3,3849.2,0.9486]
[1761874755162,2.59783578,3849.4,3849.2,0.9486]
[1761874755367,2.59787493,3849.3,3849.0,0.001]
[1761874755787,2.59788905,3849.3,3849.2,0.4708]
[1761874756366,2.59788905,3849.3,3849.2,0.9486]
[1761874757815,0.002,3850.1,3849.2,0.9486]
[1761874758103,2.59764505,3849.7,3849.4,0.4708]
[1761874758289,2.59769597,3849.6,3849.3,0.4778]
[1761874758596,0.1296,3849.6,3849.5,0.4708]
[1761874758769,2.72727575,3849.6,3849.5,0.4708]
[1761874758969,0.002,3850.1,3849.5,0.9486]
[1761874759202,0.002,3850.1,3850.0,0.4708]
[1761874759564,0.002,3850.1,3850.0,0.9486]
[1761874763773,0.002,3850.1,3850.0,0.4708]
[1761874764174,2.59933513,3850.1,3850.0,0.4708]
[1761874764410,2.59933513,3850.1,3850.0,0.9266]
[1761874764607,0.002,3850.1,3850.0,0.9266]
[1761874764832,0.002,3850.1,3850.0,6.4045099]
[1761874765015,0.002,3850.1,3850.0,9.64236348]
[1761874767192,0.002,3850.5,3850.0,9.64236348]
[1761874767193,0.002,3850.5,3850.4,2.59713276]
[1761874767390,0.002,3850.5,3850.4,4.46151276]
[1761874767713,0.002,3850.5,3850.4,5.32281676]
[1761874768011,0.002,3850.5,3850.4,6.70951508]
[1761874768907,0.01,3850.7,3850.6,4.40218187]
[1761874769108,0.01,3850.7,3850.6,4.89285184]
[1761874769275,0.01,3850.7,3850.6,5.47825184]
[1761874769478,0.01,3850.7,3850.6,5.45228187]
[1761874769716,0.01,3850.7,3850.6,6.99058722]
[1761874770218,0.01,3850.7,3850.6,7.09462478]
[1761874773226,0.002,3850.9,3850.7,2.59693042]
[1761874773425,0.002,3851.2,3850.7,2.59693042]
[1761874773426,0.002,3851.2,3851.1,3.99634069]
[1761874773625,0.002,3851.2,3851.1,14.61018127]
[1761874773928,0.002,3851.2,3851.1,16.3186314]
[1761874775188,0.002,3851.2,3851.1,16.42265219]
[1761874776885,0.002,3851.2,3851.1,10.88079482]
[1761874777086,0.002,3851.2,3851.1,7.03079482]
[1761874777620,0.002,3851.2,3851.1,6.62529082]
[1761874780314,0.002,3851.2,3851.1,5.04644069]
[1761874780513,0.002,3851.2,3851.1,5.07240729]
[1761874781007,0.002,3851.2,3851.1,5.47791129]
[1761874781212,0.002,3851.2,3851.1,5.45194469]
[1761874786018,0.002,3851.2,3851.1,5.04644069]
[1761874786218,0.002,3851.2,3851.1,6.19576312]
[1761874786939,0.3586,3851.2,3851.1,0.1296]
[1761874787574,0.3586,3851.2,3851.1,1.52928]
[1761874788649,0.002,3851.2,3851.1,1.52928]
[1761874789218,0.3598,3851.2,3851.1,1.52928]
[1761874792267,0.8289,3851.2,3851.1,0.1296]
[1761874792448,2.59666069,3851.1,3850.4,5.46883065]
[1761874792772,3.06576069,3851.1,3850.9,0.1296]
[1761874792980,3.08042812,3851.0,3850.9,0.1296]
[1761874793163,3.42482812,3851.0,3850.9,0.1296]
[1761874793670,3.42482812,3851.0,3850.9,0.1306]
[1761874794192,0.8281,3851.0,3850.9,0.1306]
[1761874794540,0.8281,3851.0,3850.9,4.99327727]
[1761874794842,0.3444,3851.0,3850.9,4.99327727]
[1761874795467,0.8267,3851.0,3850.9,4.99327727]
[1761874795678,3.42342812,3851.0,3850.9,0.1306]
[1761874795841,3.76597093,3851.0,3850.9,0.001]
[1761874796041,1.16924281,3851.0,3850.9,0.001]
[1761874796243,0.8267,3851.0,3850.9,0.001]
[1761874796671,0.3444,3851.0,3850.9,0.001]
[1761874796972,0.002,3851.2,3850.9,0.4878]
[1761874797153,0.002,3851.2,3851.1,4.86267727]
[1761874797470,0.002,3851.2,3850.9,0.001]
[1761874797670,0.002,3851.2,3851.1,4.86267727]
[1761874798170,0.3464,3851.2,3851.1,4.86267727]
[1761874798372,2.59671787,3851.1,3851.0,4.86267727]
[1761874798760,3.42481787,3851.1,3851.0,4.86267727]
[1761874800261,0.8281,3851.1,3851.0,4.86267727]
[1761874800665,0.4789,3851.1,3851.0,4.86267727]
[1761874800853,0.002,3851.2,3851.0,5.835845]
[1761874801053,0.002,3851.2,3851.1,2.3758466]
[1761874801372,0.002,3851.2,3851.1,4.97250729]
[1761874801576,0.002,3851.6,3851.5,3.99607101]
[1761874801744,0.002,3851.6,3851.5,9.37151219]
[1761874802077,0.002,3851.6,3851.5,11.05208859]
[1761874803443,0.002,3851.6,3851.5,12.18952259]
[1761874803679,0.002,3851.6,3851.5,6.18941132]
[1761874804286,0.002,3851.6,3851.5,3.59302031]
[1761874804462,0.002,3851.6,3851.5,6.21537523]
[1761874804650,0.002,3851.6,3851.5,6.59491532]
[1761874805895,0.002,3851.6,3851.5,6.72451532]
[1761874806094,0.01,3851.7,3851.6,4.4015076]
[1761874806400,0.01,3851.7,3851.6,7.16941816]
[1761874806695,0.002,3852.0,3851.9,2.59612139]
[1761874806874,0.002,3852.0,3851.9,10.50867387]
[1761874807064,0.002,3852.0,3851.9,10.94611266]
[1761874807465,0.002,3852.0,3851.9,3.99580139]
[1761874807661,0.3467,3852.0,3851.9,1.39968]
[1761874807887,0.829,3852.0,3851.9,1.39968]
[1761874808088,0.3467,3852.0,3851.3,2.59649724]
[1761874808397,0.3467,3852.0,3851.2,0.4634]
[1761874808763,0.3467,3852.0,3851.2,3.05992681]
[1761874808964,0.3467,3852.0,3851.4,1.39968]
[1761874809589,0.3467,3852.0,3851.3,2.15394888]
[1761874809860,0.3467,3852.0,3851.3,0.75426888]
[1761874809861,2.59612139,3851.9,3851.3,0.75426888]
[1761874810177,0.3467,3852.0,3851.6,1.39968]
[1761874810374,0.002,3852.0,3851.6,1.39968]
[1761874811003,0.3461,3851.7,3851.4,0.002]
[1761874811297,0.002,3852.0,3851.6,0.4868]
[1761874811496,0.002,3852.0,3851.6,1.30421881]
[1761874811695,0.4857,3852.0,3851.6,0.4868]
[1761874811863,0.4857,3852.0,3851.5,1.39968]
[1761874812261,0.002,3852.0,3851.9,0.4868]
[1761874812461,0.002,3852.0,3851.5,1.39968]
[1761874812869,0.002,3852.0,3851.6,2.5963236]
[1761874813066,0.002,3852.0,3851.9,0.4868]
[1761874813276,0.002,3852.0,3851.6,1.72285308]
[1761874813476,0.002,3852.0,3851.6,1.25945308]
[1761874814410,0.4857,3852.0,3851.6,1.25945308]
[1761874814598,0.4857,3852.0,3851.5,1.39968]
[1761874815899,0.4857,3852.0,3851.4,0.002]
[1761874816478,0.4857,3852.0,3851.9,0.1296]
[1761874817014,0.8304,3852.0,3851.9,0.1296]
[1761874818413,3.42645399,3852.0,3851.4,0.002]
[1761874818623,0.0034,3851.5,3851.4,0.1316]
[1761874818976,0.4976,3851.5,3851.4,0.1316]
[1761874819180,0.4976,3851.5,3851.4,0.002]
[1761874819181,3.09399101,3851.5,3851.4,0.002]
[1761874820834,0.4976,3851.5,3851.4,0.002]
[1761874821538,3.09399101,3851.5,3851.4,0.002]
[1761874827654,3.09399101,3851.5,3851.4,0.34687546]
[1761874829855,3.67617673,3851.5,3851.4,0.34687546]
[1761874830044,3.80577673,3851.5,3851.4,0.34687546]
[1761874834860,0.002,3851.7,3851.6,2.5963236]
[1761874835071,0.002,3851.7,3851.6,4.48246683]
[1761874835228,0.002,3851.7,3851.6,4.94066683]
[1761874835750,0.002,3851.7,3851.6,1.86018]
[1761874836653,0.002,3851.7,3851.6,2.31838]
[1761874837265,0.002,3851.7,3851.6,3.33068795]
[1761874837461,0.002,3851.7,3851.6,2.87248795]
[1761874837761,0.002,3851.7,3851.6,1.86018]
[1761874840168,0.002,3851.7,3851.6,4.4565036]
[1761874840346,0.002,3851.7,3851.6,1.86018]
[1761874840547,0.002,3851.7,3851.6,2.31838]
[1761874840779,0.002,3851.7,3851.6,1.86018]
[1761874840961,0.002,3851.7,3851.6,2.38635254]
[1761874844875,0.002,3851.7,3851.6,2.51595254]
[1761874845455,0.002,3851.7,3851.6,1.11627254]
[1761874845764,0.8198,3851.7,3851.6,0.1296]
[1761874847186,3.41605619,3851.7,3851.4,0.34687546]
[1761874847393,0.3267,3851.5,3851.4,0.34687546]
[1761874847744,0.8178,3851.5,3851.4,0.34687546]
[1761874847952,3.41419101,3851.5,3851.4,0.34687546]
[1761874848145,0.002,3851.7,3851.4,0.80737546]
[1761874848979,0.002,3851.7,3851.4,0.34687546]
[1761874849182,0.4947,3851.7,3851.4,0.34687546]
[1761874849975,0.3267,3851.5,3851.4,0.34687546]
[1761874850700,0.8034,3851.5,3851.4,0.34687546]
[1761874851248,0.3267,3851.5,3851.4,0.34687546]
[1761874851481,0.8034,3851.5,3851.4,0.34687546]
[1761874851884,0.3267,3851.5,3851.4,0.34687546]
[1761874852182,0.002,3851.7,3851.4,0.83017546]
[1761874852751,0.3426,3851.5,3851.4,0.34687546]
[1761874853454,0.818,3851.5,3851.4,0.34687546]